[Event "Titled Tuesday Blitz May 2 Early 2023"]
[White "Duda, Jan-Krzysztof"]
[Black "Bachmann, Axel"]
[WhiteFideId "1170546"]
[BlackFideId "3700488"]
[WhiteElo "2790"]
[BlackElo "2605"]
[Result "1-0"]
[Round "05"]
[TimeControl "180+2"]
[Date "2023.05.02"]
[WhiteClock "0:00:07"]
[BlackClock "0:00:01"]

1. d4 {[%clk 0:02:50]}  Nf6 {[%clk 0:02:57]} 2. c4 {[%clk 0:02:50]}  e6 {[%clk 0:02:57]} 3. Nf3 {[%clk 0:02:50]}  Bb4+ {[%clk 0:02:56]} 4. Nbd2 {[%clk 0:02:49]}  O-O {[%clk 0:02:55]} 5. a3 {[%clk 0:02:48]}  Be7 {[%clk 0:02:55]} 6. b4 {[%clk 0:02:45]}  a5 {[%clk 0:02:50]} 7. b5 {[%clk 0:02:45]}  c5 {[%clk 0:02:50]} 8. bxc6 {[%clk 0:02:37]}  bxc6 {[%clk 0:02:42]} 9. c5 {[%clk 0:02:10]}  d5 {[%clk 0:02:29]} 10. cxd6 {[%clk 0:02:11]}  Bxd6 {[%clk 0:02:28]} 11. e4 {[%clk 0:02:10]}  Bf4 {[%clk 0:02:25]} 12. Qc2 {[%clk 0:02:08]}  Nbd7 {[%clk 0:01:55]} 13. Bd3 {[%clk 0:01:48]}  Ba6 {[%clk 0:01:54]} 14. Nc4 {[%clk 0:01:33]}  Bxc4 {[%clk 0:01:31]} 15. Bxc4 {[%clk 0:01:22]}  Bxc1 {[%clk 0:01:27]} 16. Rxc1 {[%clk 0:01:23]}  Qe7 {[%clk 0:01:12]} 17. a4 {[%clk 0:00:36]}  Qb4+ {[%clk 0:00:45]} 18. Ke2 {[%clk 0:00:36]}  h6 {[%clk 0:00:44]} 19. Rb1 {[%clk 0:00:35]}  Qe7 {[%clk 0:00:44]} 20. Rb7 {[%clk 0:00:34]}  Rfb8 {[%clk 0:00:38]} 21. Rhb1 {[%clk 0:00:34]}  Rxb7 {[%clk 0:00:33]} 22. Rxb7 {[%clk 0:00:35]}  Rb8 {[%clk 0:00:34]} 23. Rxb8+ {[%clk 0:00:34]}  Nxb8 {[%clk 0:00:35]} 24. Bd3 {[%clk 0:00:27]}  Qb4 {[%clk 0:00:31]} 25. Qb1 {[%clk 0:00:22]}  Qxb1 {[%clk 0:00:19]} 26. Bxb1 {[%clk 0:00:23]}  Nbd7 {[%clk 0:00:19]} 27. Nd2 {[%clk 0:00:21]}  c5 {[%clk 0:00:18]} 28. Kd3 {[%clk 0:00:15]}  cxd4 {[%clk 0:00:08]} 29. Kxd4 {[%clk 0:00:16]}  Ng4 {[%clk 0:00:08]} 30. f3 {[%clk 0:00:15]}  Nxh2 {[%clk 0:00:08]} 31. Nc4 {[%clk 0:00:15]}  Nf1 {[%clk 0:00:06]} 32. Nxa5 {[%clk 0:00:13]}  e5+ {[%clk 0:00:07]} 33. Kd3 {[%clk 0:00:07]}  Nc5+ {[%clk 0:00:04]} 34. Ke2 {[%clk 0:00:07]}  Ng3+ {[%clk 0:00:01]} 35. Kf2 {[%clk 0:00:07]} 1-0


[Site "https://www.chess.com"]

[Event "Titled Tuesday Blitz May 2 Early 2023"]
[White "Madaminov, Mukhiddin"]
[Black "Sarana, Alexey"]
[WhiteFideId "14210703"]
[BlackFideId "24133795"]
[WhiteElo "2511"]
[BlackElo "2714"]
[Result "1/2-1/2"]
[Round "05"]
[TimeControl "180+2"]
[Date "2023.05.02"]
[WhiteClock "0:00:03"]
[BlackClock "0:00:06"]

1. d4 {[%clk 0:03:00]}  Nf6 {[%clk 0:03:00]} 2. Nc3 {[%clk 0:03:00]}  e6 {[%clk 0:03:00]} 3. Bf4 {[%clk 0:03:00]}  d5 {[%clk 0:02:59]} 4. Nb5 {[%clk 0:03:00]}  Bb4+ {[%clk 0:02:59]} 5. c3 {[%clk 0:03:00]}  Ba5 {[%clk 0:02:59]} 6. a4 {[%clk 0:03:00]}  a6 {[%clk 0:02:56]} 7. b4 {[%clk 0:03:01]}  Nc6 {[%clk 0:02:50]} 8. bxa5 {[%clk 0:02:57]}  axb5 {[%clk 0:02:51]} 9. axb5 {[%clk 0:02:58]}  Nxa5 {[%clk 0:02:50]} 10. e3 {[%clk 0:02:58]}  Bd7 {[%clk 0:02:49]} 11. Bg5 {[%clk 0:02:55]}  h6 {[%clk 0:02:36]} 12. Bh4 {[%clk 0:02:41]}  c6 {[%clk 0:02:21]} 13. bxc6 {[%clk 0:02:35]}  Nxc6 {[%clk 0:02:19]} 14. Bd3 {[%clk 0:02:33]}  O-O {[%clk 0:02:02]} 15. Ne2 {[%clk 0:01:57]}  Rxa1 {[%clk 0:01:49]} 16. Qxa1 {[%clk 0:01:57]}  Qa5 {[%clk 0:01:37]} 17. Qb2 {[%clk 0:01:46]}  Ne4 {[%clk 0:01:35]} 18. O-O {[%clk 0:01:40]}  Qc7 {[%clk 0:01:22]} 19. c4 {[%clk 0:01:37]}  Na5 {[%clk 0:01:17]} 20. c5 {[%clk 0:01:32]}  Nc4 {[%clk 0:00:50]} 21. Bxc4 {[%clk 0:01:32]}  dxc4 {[%clk 0:00:50]} 22. f3 {[%clk 0:01:32]}  Ng5 {[%clk 0:00:35]} 23. Bg3 {[%clk 0:01:21]}  Qc6 {[%clk 0:00:34]} 24. h4 {[%clk 0:01:19]}  Nh7 {[%clk 0:00:33]} 25. Rb1 {[%clk 0:01:19]}  Bc8 {[%clk 0:00:29]} 26. Qc2 {[%clk 0:01:14]}  b5 {[%clk 0:00:15]} 27. cxb6 {[%clk 0:00:44]}  Bb7 {[%clk 0:00:15]} 28. Nc3 {[%clk 0:00:42]}  Nf6 {[%clk 0:00:15]} 29. e4 {[%clk 0:00:37]}  Ra8 {[%clk 0:00:15]} 30. Qb2 {[%clk 0:00:34]}  Nd7 {[%clk 0:00:13]} 31. Qb4 {[%clk 0:00:34]}  Ra6 {[%clk 0:00:13]} 32. Bc7 {[%clk 0:00:33]}  Ra8 {[%clk 0:00:13]} 33. Qd6 {[%clk 0:00:30]}  Qxd6 {[%clk 0:00:13]} 34. Bxd6 {[%clk 0:00:31]}  Ra6 {[%clk 0:00:13]} 35. Bc7 {[%clk 0:00:30]}  Ra3 {[%clk 0:00:13]} 36. Nb5 {[%clk 0:00:30]}  Rb3 {[%clk 0:00:14]} 37. Rxb3 {[%clk 0:00:26]}  cxb3 {[%clk 0:00:15]} 38. Kf2 {[%clk 0:00:25]}  f5 {[%clk 0:00:15]} 39. Ke3 {[%clk 0:00:18]}  fxe4 {[%clk 0:00:15]} 40. fxe4 {[%clk 0:00:18]}  Nf6 {[%clk 0:00:16]} 41. d5 {[%clk 0:00:12]}  exd5 {[%clk 0:00:14]} 42. e5 {[%clk 0:00:13]}  b2 {[%clk 0:00:14]} 43. Na3 {[%clk 0:00:12]}  Ne4 {[%clk 0:00:14]} 44. e6 {[%clk 0:00:13]}  Kf8 {[%clk 0:00:13]} 45. Be5 {[%clk 0:00:13]}  g5 {[%clk 0:00:08]} 46. hxg5 {[%clk 0:00:12]}  hxg5 {[%clk 0:00:09]} 47. Bxb2 {[%clk 0:00:12]}  Ke7 {[%clk 0:00:09]} 48. Nb5 {[%clk 0:00:11]}  Kxe6 {[%clk 0:00:10]} 49. Kd4 {[%clk 0:00:10]}  Kd7 {[%clk 0:00:10]} 50. Nc7 {[%clk 0:00:10]}  Kd6 {[%clk 0:00:06]} 51. Ba3+ {[%clk 0:00:09]}  Kc6 {[%clk 0:00:06]} 52. Nxd5 {[%clk 0:00:10]}  Nd2 {[%clk 0:00:07]} 53. Bb4 {[%clk 0:00:04]}  Nf1 {[%clk 0:00:05]} 54. Bc5 {[%clk 0:00:04]}  Ng3 {[%clk 0:00:04]} 55. Ne7+ {[%clk 0:00:04]}  Kb5 {[%clk 0:00:05]} 56. Bd6 {[%clk 0:00:04]}  Ne2+ {[%clk 0:00:05]} 57. Ke3 {[%clk 0:00:04]}  Nf4 {[%clk 0:00:04]} 58. Bxf4 {[%clk 0:00:04]}  gxf4+ {[%clk 0:00:05]} 59. Kxf4 {[%clk 0:00:03]}  Bxg2 {[%clk 0:00:06]} 60. Nc8 {[%clk 0:00:04]}  Ba8 {[%clk 0:00:05]} 61. Ke5 {[%clk 0:00:04]}  Kc6 {[%clk 0:00:05]} 62. Ke6 {[%clk 0:00:04]}  Bb7 {[%clk 0:00:06]} 63. Nd6 {[%clk 0:00:03]}  Kxb6 {[%clk 0:00:06]} 1/2-1/2


[Site "https://www.chess.com"]

[Event "Titled Tuesday Blitz May 2 Early 2023"]
[White "Bortnyk, Olexandr"]
[Black "Bernadskiy, Vitaliy"]
[WhiteFideId "14120828"]
[BlackFideId "14100371"]
[WhiteElo "2734"]
[BlackElo "2488"]
[Result "1-0"]
[Round "05"]
[TimeControl "180+2"]
[Date "2023.05.02"]
[WhiteClock "0:01:00"]
[BlackClock "0:00:25"]

1. d4 {[%clk 0:03:00]}  b6 {[%clk 0:02:55]} 2. e4 {[%clk 0:02:56]}  Bb7 {[%clk 0:02:55]} 3. Bd3 {[%clk 0:02:56]}  e6 {[%clk 0:02:56]} 4. Qe2 {[%clk 0:02:54]}  g6 {[%clk 0:02:50]} 5. c3 {[%clk 0:02:52]}  Bg7 {[%clk 0:02:50]} 6. h4 {[%clk 0:02:53]}  h6 {[%clk 0:02:48]} 7. h5 {[%clk 0:02:53]}  g5 {[%clk 0:02:48]} 8. f4 {[%clk 0:02:54]}  gxf4 {[%clk 0:02:40]} 9. Bxf4 {[%clk 0:02:54]}  c5 {[%clk 0:02:38]} 10. Nf3 {[%clk 0:02:50]}  cxd4 {[%clk 0:02:38]} 11. cxd4 {[%clk 0:02:51]}  Nc6 {[%clk 0:02:37]} 12. Nc3 {[%clk 0:02:48]}  a6 {[%clk 0:02:19]} 13. Qe3 {[%clk 0:02:34]}  Nf6 {[%clk 0:02:18]} 14. Bd6 {[%clk 0:02:31]}  Rc8 {[%clk 0:01:58]} 15. e5 {[%clk 0:02:26]}  Ng8 {[%clk 0:01:47]} 16. Qf4 {[%clk 0:01:58]}  Nge7 {[%clk 0:01:42]} 17. Nh4 {[%clk 0:01:44]}  Na5 {[%clk 0:01:04]} 18. O-O {[%clk 0:01:37]}  O-O {[%clk 0:01:02]} 19. Ne4 {[%clk 0:01:30]}  Nc4 {[%clk 0:00:53]} 20. Nf6+ {[%clk 0:01:05]}  Kh8 {[%clk 0:00:52]} 21. Bxe7 {[%clk 0:01:05]}  Qxe7 {[%clk 0:00:52]} 22. Nf5 {[%clk 0:01:06]}  Qb4 {[%clk 0:00:35]} 23. Nxg7 {[%clk 0:01:05]}  Qd2 {[%clk 0:00:28]} 24. Qxd2 {[%clk 0:01:01]}  Nxd2 {[%clk 0:00:29]} 25. Rf2 {[%clk 0:01:01]}  Nc4 {[%clk 0:00:25]} 26. Nge8 {[%clk 0:01:00]} 1-0


[Site "https://www.chess.com"]

[Event "Titled Tuesday Blitz May 2 Early 2023"]
[White "Paravyan, David"]
[Black "Livaic, Leon"]
[WhiteFideId "4194985"]
[BlackFideId "14531534"]
[WhiteElo "2563"]
[BlackElo "2509"]
[Result "0-1"]
[Round "05"]
[TimeControl "180+2"]
[Date "2023.05.02"]
[WhiteClock "0:00:01"]
[BlackClock "0:00:13"]

1. e4 {[%clk 0:03:00]}  e6 {[%clk 0:02:59]} 2. d4 {[%clk 0:03:00]}  d5 {[%clk 0:03:00]} 3. Nd2 {[%clk 0:03:00]}  c5 {[%clk 0:03:00]} 4. Ngf3 {[%clk 0:03:00]}  cxd4 {[%clk 0:03:01]} 5. Nxd4 {[%clk 0:03:01]}  Nf6 {[%clk 0:03:01]} 6. exd5 {[%clk 0:03:00]}  Nxd5 {[%clk 0:03:01]} 7. Bc4 {[%clk 0:02:56]}  Nb6 {[%clk 0:02:48]} 8. Bb5+ {[%clk 0:02:51]}  Bd7 {[%clk 0:02:46]} 9. Qe2 {[%clk 0:02:37]}  Bxb5 {[%clk 0:02:39]} 10. Qxb5+ {[%clk 0:02:38]}  Qd7 {[%clk 0:02:39]} 11. O-O {[%clk 0:02:33]}  Nc6 {[%clk 0:02:26]} 12. Nxc6 {[%clk 0:02:31]}  Qxc6 {[%clk 0:02:25]} 13. Qxc6+ {[%clk 0:02:31]}  bxc6 {[%clk 0:02:26]} 14. Ne4 {[%clk 0:02:22]}  Be7 {[%clk 0:02:19]} 15. Rd1 {[%clk 0:02:19]}  O-O {[%clk 0:01:53]} 16. Be3 {[%clk 0:01:47]}  Nd5 {[%clk 0:01:38]} 17. Bc5 {[%clk 0:01:40]}  Bxc5 {[%clk 0:01:36]} 18. Nxc5 {[%clk 0:01:41]}  Rfd8 {[%clk 0:01:36]} 19. Kf1 {[%clk 0:01:37]}  Kf8 {[%clk 0:01:28]} 20. Rd3 {[%clk 0:00:49]}  Nb4 {[%clk 0:01:19]} 21. Rxd8+ {[%clk 0:00:49]}  Rxd8 {[%clk 0:01:19]} 22. c3 {[%clk 0:00:50]}  Nd5 {[%clk 0:01:15]} 23. g3 {[%clk 0:00:46]}  Ke7 {[%clk 0:01:15]} 24. Re1 {[%clk 0:00:37]}  Rb8 {[%clk 0:01:15]} 25. Re2 {[%clk 0:00:37]}  a5 {[%clk 0:01:13]} 26. h4 {[%clk 0:00:35]}  Rb5 {[%clk 0:01:13]} 27. Nd3 {[%clk 0:00:31]}  Nb6 {[%clk 0:01:09]} 28. b3 {[%clk 0:00:27]}  Rd5 {[%clk 0:01:08]} 29. Re3 {[%clk 0:00:25]}  a4 {[%clk 0:00:58]} 30. c4 {[%clk 0:00:25]}  Rd4 {[%clk 0:00:48]} 31. Ne5 {[%clk 0:00:25]}  Rd1+ {[%clk 0:00:35]} 32. Ke2 {[%clk 0:00:25]}  Ra1 {[%clk 0:00:34]} 33. Nxc6+ {[%clk 0:00:26]}  Kd6 {[%clk 0:00:35]} 34. Nb4 {[%clk 0:00:26]}  Kc5 {[%clk 0:00:27]} 35. Na6+ {[%clk 0:00:22]}  Kc6 {[%clk 0:00:26]} 36. Kf3 {[%clk 0:00:15]}  a3 {[%clk 0:00:23]} 37. Rd3 {[%clk 0:00:09]}  Nd7 {[%clk 0:00:24]} 38. Nb4+ {[%clk 0:00:08]}  Kc7 {[%clk 0:00:21]} 39. Na6+ {[%clk 0:00:09]}  Kc6 {[%clk 0:00:21]} 40. Rd2 {[%clk 0:00:07]}  Ne5+ {[%clk 0:00:18]} 41. Kg2 {[%clk 0:00:06]}  Kb6 {[%clk 0:00:16]} 42. Nb4 {[%clk 0:00:06]}  Kc5 {[%clk 0:00:17]} 43. Na6+ {[%clk 0:00:05]}  Kb6 {[%clk 0:00:17]} 44. Nb4 {[%clk 0:00:03]}  Ka5 {[%clk 0:00:15]} 45. Nd3 {[%clk 0:00:01]}  Nxd3 {[%clk 0:00:16]} 46. Rxd3 {[%clk 0:00:02]}  Rxa2 {[%clk 0:00:16]} 47. Rd7 {[%clk 0:00:02]}  Rb2 {[%clk 0:00:13]} 48. Ra7+ {[%clk 0:00:01]}  Kb4 {[%clk 0:00:13]} 0-1


[Site "https://www.chess.com"]

[Event "Titled Tuesday Blitz May 2 Early 2023"]
[White "Deac, Bogdan-Daniel"]
[Black "Mikhailovsky, Vladimir"]
[WhiteFideId "1226380"]
[BlackFideId "34105414"]
[WhiteElo "2649"]
[BlackElo "2275"]
[Result "1-0"]
[Round "05"]
[TimeControl "180+2"]
[Date "2023.05.02"]
[WhiteClock "0:00:12"]
[BlackClock "0:00:07"]

1. b3 {[%clk 0:03:00]}  d5 {[%clk 0:02:59]} 2. Bb2 {[%clk 0:03:01]}  Nc6 {[%clk 0:02:59]} 3. Nf3 {[%clk 0:03:00]}  Bg4 {[%clk 0:02:59]} 4. d4 {[%clk 0:02:54]}  Nf6 {[%clk 0:02:54]} 5. Nbd2 {[%clk 0:02:53]}  e6 {[%clk 0:02:51]} 6. g3 {[%clk 0:02:47]}  Bd6 {[%clk 0:02:49]} 7. Bg2 {[%clk 0:02:44]}  Qe7 {[%clk 0:02:49]} 8. c4 {[%clk 0:02:37]}  Ba3 {[%clk 0:02:48]} 9. Qc1 {[%clk 0:02:36]}  Bxb2 {[%clk 0:02:45]} 10. Qxb2 {[%clk 0:02:36]}  O-O {[%clk 0:02:46]} 11. O-O {[%clk 0:02:35]}  Rfd8 {[%clk 0:02:38]} 12. a3 {[%clk 0:02:27]}  h6 {[%clk 0:02:27]} 13. Rac1 {[%clk 0:02:22]}  a5 {[%clk 0:02:20]} 14. e3 {[%clk 0:02:21]}  Bf5 {[%clk 0:02:15]} 15. Rfd1 {[%clk 0:02:16]}  Ne4 {[%clk 0:02:13]} 16. h3 {[%clk 0:02:11]}  Bh7 {[%clk 0:02:07]} 17. Bf1 {[%clk 0:01:51]}  Nxd2 {[%clk 0:02:04]} 18. Nxd2 {[%clk 0:01:50]}  e5 {[%clk 0:01:48]} 19. cxd5 {[%clk 0:01:40]}  Rxd5 {[%clk 0:01:48]} 20. Bg2 {[%clk 0:01:40]}  Rdd8 {[%clk 0:01:21]} 21. d5 {[%clk 0:01:17]}  Nb8 {[%clk 0:00:58]} 22. Qc3 {[%clk 0:01:04]}  c6 {[%clk 0:00:54]} 23. Nc4 {[%clk 0:00:59]}  Ra6 {[%clk 0:00:20]} 24. Qxe5 {[%clk 0:00:49]}  Qxe5 {[%clk 0:00:17]} 25. Nxe5 {[%clk 0:00:49]}  cxd5 {[%clk 0:00:03]} 26. Bxd5 {[%clk 0:00:41]}  Kf8 {[%clk 0:00:03]} 27. Bxb7 {[%clk 0:00:41]}  Rxd1+ {[%clk 0:00:03]} 28. Rxd1 {[%clk 0:00:41]}  Rb6 {[%clk 0:00:02]} 29. Rd8+ {[%clk 0:00:40]}  Ke7 {[%clk 0:00:03]} 30. Rxb8 {[%clk 0:00:40]}  Rxb3 {[%clk 0:00:04]} 31. Nc6+ {[%clk 0:00:29]}  Kd6 {[%clk 0:00:04]} 32. Nxa5 {[%clk 0:00:29]}  Rb1+ {[%clk 0:00:04]} 33. Kh2 {[%clk 0:00:18]}  Be4 {[%clk 0:00:04]} 34. Rd8+ {[%clk 0:00:13]}  Kc7 {[%clk 0:00:04]} 35. Bxe4 {[%clk 0:00:13]}  Kxd8 {[%clk 0:00:05]} 36. Bd5 {[%clk 0:00:12]}  Ra1 {[%clk 0:00:03]} 37. Bxf7 {[%clk 0:00:09]}  Rxa3 {[%clk 0:00:03]} 38. Nc6+ {[%clk 0:00:09]}  Kc7 {[%clk 0:00:03]} 39. Nd4 {[%clk 0:00:09]}  Kd7 {[%clk 0:00:02]} 40. Kg2 {[%clk 0:00:09]}  Ke7 {[%clk 0:00:03]} 41. Bd5 {[%clk 0:00:10]}  Kf6 {[%clk 0:00:02]} 42. h4 {[%clk 0:00:10]}  g5 {[%clk 0:00:02]} 43. h5 {[%clk 0:00:10]}  Ra5 {[%clk 0:00:01]} 44. Bf3 {[%clk 0:00:10]}  Rc5 {[%clk 0:00:01]} 45. g4 {[%clk 0:00:10]}  Ra5 {[%clk 0:00:01]} 46. Nf5 {[%clk 0:00:11]}  Ra4 {[%clk 0:00:02]} 47. Nxh6 {[%clk 0:00:11]}  Rb4 {[%clk 0:00:03]} 48. Nf5 {[%clk 0:00:12]}  Rb8 {[%clk 0:00:03]} 49. Kg3 {[%clk 0:00:12]}  Rh8 {[%clk 0:00:04]} 50. Be4 {[%clk 0:00:13]}  Ke5 {[%clk 0:00:04]} 51. Bd3 {[%clk 0:00:12]}  Rd8 {[%clk 0:00:05]} 52. f4+ {[%clk 0:00:11]}  gxf4+ {[%clk 0:00:04]} 53. exf4+ {[%clk 0:00:12]}  Kf6 {[%clk 0:00:05]} 54. Be4 {[%clk 0:00:12]}  Kf7 {[%clk 0:00:06]} 55. g5 {[%clk 0:00:12]}  Rd1 {[%clk 0:00:06]} 56. Bf3 {[%clk 0:00:12]}  Kg8 {[%clk 0:00:07]} 57. Bxd1 {[%clk 0:00:11]}  Kh8 {[%clk 0:00:07]} 58. Bg4 {[%clk 0:00:12]} 1-0


[Site "https://www.chess.com"]

[Event "Titled Tuesday Blitz May 2 Early 2023"]
[White "Grigoriants, Sergey"]
[Black "Kosakowski, Jakub"]
[WhiteFideId "4130804"]
[BlackFideId "1185080"]
[WhiteElo "2502"]
[BlackElo "2488"]
[Result "1/2-1/2"]
[Round "05"]
[TimeControl "180+2"]
[Date "2023.05.02"]
[WhiteClock "0:00:05"]
[BlackClock "0:00:11"]

1. d4 {[%clk 0:02:55]}  d5 {[%clk 0:02:57]} 2. c4 {[%clk 0:02:55]}  e5 {[%clk 0:02:58]} 3. dxe5 {[%clk 0:02:52]}  d4 {[%clk 0:02:57]} 4. Nf3 {[%clk 0:02:50]}  Nc6 {[%clk 0:02:58]} 5. a3 {[%clk 0:02:49]}  Nge7 {[%clk 0:02:58]} 6. Nbd2 {[%clk 0:01:48]}  a5 {[%clk 0:02:45]} 7. Nb3 {[%clk 0:01:24]}  Nf5 {[%clk 0:02:44]} 8. Bg5 {[%clk 0:01:20]}  Be7 {[%clk 0:02:32]} 9. Bxe7 {[%clk 0:01:20]}  Qxe7 {[%clk 0:02:33]} 10. Nbxd4 {[%clk 0:01:18]}  Ncxd4 {[%clk 0:02:32]} 11. Nxd4 {[%clk 0:01:18]}  Qxe5 {[%clk 0:02:33]} 12. e3 {[%clk 0:01:17]}  O-O {[%clk 0:02:33]} 13. Nxf5 {[%clk 0:01:12]}  Bxf5 {[%clk 0:02:10]} 14. Qd4 {[%clk 0:01:12]}  Qe6 {[%clk 0:01:21]} 15. Rd1 {[%clk 0:01:11]}  Be4 {[%clk 0:01:14]} 16. f3 {[%clk 0:01:09]}  Bc6 {[%clk 0:01:13]} 17. Kf2 {[%clk 0:01:09]}  Qe7 {[%clk 0:01:09]} 18. Be2 {[%clk 0:01:06]}  Rfe8 {[%clk 0:01:08]} 19. h4 {[%clk 0:00:58]}  a4 {[%clk 0:01:08]} 20. Qf4 {[%clk 0:00:53]}  Ra5 {[%clk 0:01:03]} 21. Rhe1 {[%clk 0:00:43]}  Rh5 {[%clk 0:00:58]} 22. Rd4 {[%clk 0:00:38]}  h6 {[%clk 0:00:52]} 23. Bd3 {[%clk 0:00:34]}  Re5 {[%clk 0:00:49]} 24. Bc2 {[%clk 0:00:23]}  Qc5 {[%clk 0:00:45]} 25. Re2 {[%clk 0:00:13]}  Qb6 {[%clk 0:00:31]} 26. c5 {[%clk 0:00:10]}  Qxc5 {[%clk 0:00:20]} 27. Bxa4 {[%clk 0:00:10]}  g5 {[%clk 0:00:14]} 28. hxg5 {[%clk 0:00:09]}  hxg5 {[%clk 0:00:15]} 29. Qf6 {[%clk 0:00:03]}  Bxa4 {[%clk 0:00:14]} 30. Rxa4 {[%clk 0:00:02]}  Rxe3 {[%clk 0:00:14]} 31. Rxe3 {[%clk 0:00:02]}  Qxe3+ {[%clk 0:00:09]} 32. Kg3 {[%clk 0:00:03]}  Qe5+ {[%clk 0:00:04]} 33. Qxe5 {[%clk 0:00:02]}  Rxe5 {[%clk 0:00:05]} 34. Rd4 {[%clk 0:00:03]}  Rc5 {[%clk 0:00:05]} 35. b4 {[%clk 0:00:02]}  Rc3 {[%clk 0:00:05]} 36. a4 {[%clk 0:00:01]}  Kg7 {[%clk 0:00:05]} 37. a5 {[%clk 0:00:01]}  Kg6 {[%clk 0:00:05]} 38. Rd7 {[%clk 0:00:01]}  f5 {[%clk 0:00:05]} 39. Kh3 {[%clk 0:00:02]}  Rb3 {[%clk 0:00:05]} 40. Kh2 {[%clk 0:00:02]}  Rxb4 {[%clk 0:00:06]} 41. Rxc7 {[%clk 0:00:02]}  g4 {[%clk 0:00:05]} 42. fxg4 {[%clk 0:00:02]}  fxg4 {[%clk 0:00:06]} 43. Kg3 {[%clk 0:00:02]}  Kf5 {[%clk 0:00:06]} 44. Rc5+ {[%clk 0:00:02]}  Kf6 {[%clk 0:00:06]} 45. Rd5 {[%clk 0:00:03]}  Ke6 {[%clk 0:00:06]} 46. Rh5 {[%clk 0:00:03]}  Kf6 {[%clk 0:00:07]} 47. Kh4 {[%clk 0:00:03]}  Ra4 {[%clk 0:00:06]} 48. g3 {[%clk 0:00:03]}  Kg6 {[%clk 0:00:06]} 49. Rb5 {[%clk 0:00:03]}  Kf6 {[%clk 0:00:06]} 50. Rxb7 {[%clk 0:00:03]}  Rxa5 {[%clk 0:00:06]} 51. Kxg4 {[%clk 0:00:02]}  Kg6 {[%clk 0:00:07]} 52. Kf3 {[%clk 0:00:03]}  Ra4 {[%clk 0:00:07]} 53. Kg2 {[%clk 0:00:03]}  Kg5 {[%clk 0:00:07]} 54. Rb3 {[%clk 0:00:02]}  Ra5 {[%clk 0:00:07]} 55. Kf3 {[%clk 0:00:02]}  Rc5 {[%clk 0:00:07]} 56. Ke4 {[%clk 0:00:02]}  Ra5 {[%clk 0:00:07]} 57. Kd4 {[%clk 0:00:03]}  Kg4 {[%clk 0:00:08]} 58. Kc4 {[%clk 0:00:03]}  Rf5 {[%clk 0:00:08]} 59. Kb4 {[%clk 0:00:03]}  Rf8 {[%clk 0:00:08]} 60. Kc4 {[%clk 0:00:03]}  Rc8+ {[%clk 0:00:08]} 61. Kd5 {[%clk 0:00:03]}  Rd8+ {[%clk 0:00:08]} 62. Kc6 {[%clk 0:00:04]}  Rc8+ {[%clk 0:00:08]} 63. Kd7 {[%clk 0:00:04]}  Rc1 {[%clk 0:00:09]} 64. Kd6 {[%clk 0:00:04]}  Rg1 {[%clk 0:00:09]} 65. Kc6 {[%clk 0:00:04]}  Rxg3 {[%clk 0:00:10]} 66. Rxg3+ {[%clk 0:00:05]}  Kxg3 {[%clk 0:00:11]} 1/2-1/2


[Site "https://www.chess.com"]

[Event "Titled Tuesday Blitz May 2 Early 2023"]
[White "Demchenko, Anton"]
[Black "Cherniaiev, Tykhon"]
[WhiteFideId "4160258"]
[BlackFideId "14182360"]
[WhiteElo "2545"]
[BlackElo "2450"]
[Result "1-0"]
[Round "05"]
[TimeControl "180+2"]
[Date "2023.05.02"]
[WhiteClock "0:00:46"]
[BlackClock "0:00:09"]

1. e4 {[%clk 0:02:46]}  e5 {[%clk 0:02:59]} 2. Nf3 {[%clk 0:02:46]}  Nc6 {[%clk 0:02:59]} 3. Bc4 {[%clk 0:02:46]}  Bc5 {[%clk 0:02:59]} 4. d3 {[%clk 0:02:46]}  Nf6 {[%clk 0:02:58]} 5. Bg5 {[%clk 0:02:47]}  d6 {[%clk 0:02:54]} 6. c3 {[%clk 0:02:47]}  h6 {[%clk 0:02:52]} 7. Bh4 {[%clk 0:02:47]}  a6 {[%clk 0:02:52]} 8. Nbd2 {[%clk 0:02:47]}  Ba7 {[%clk 0:02:48]} 9. O-O {[%clk 0:02:47]}  O-O {[%clk 0:02:42]} 10. a4 {[%clk 0:02:46]}  Be6 {[%clk 0:02:41]} 11. b4 {[%clk 0:02:43]}  g5 {[%clk 0:01:41]} 12. Bg3 {[%clk 0:02:43]}  Kg7 {[%clk 0:01:27]} 13. Rb1 {[%clk 0:02:34]}  Ne7 {[%clk 0:01:07]} 14. Bxe6 {[%clk 0:02:28]}  fxe6 {[%clk 0:01:07]} 15. d4 {[%clk 0:02:29]}  exd4 {[%clk 0:01:07]} 16. Nxd4 {[%clk 0:02:29]}  Bxd4 {[%clk 0:01:05]} 17. cxd4 {[%clk 0:02:29]}  Ng6 {[%clk 0:01:05]} 18. Qc2 {[%clk 0:02:16]}  Qd7 {[%clk 0:01:04]} 19. Rfc1 {[%clk 0:02:16]}  Rac8 {[%clk 0:01:01]} 20. e5 {[%clk 0:01:56]}  Nd5 {[%clk 0:00:53]} 21. Ne4 {[%clk 0:01:56]}  Ndf4 {[%clk 0:00:43]} 22. b5 {[%clk 0:01:38]}  axb5 {[%clk 0:00:37]} 23. axb5 {[%clk 0:01:38]}  dxe5 {[%clk 0:00:35]} 24. dxe5 {[%clk 0:01:28]}  Rf5 {[%clk 0:00:27]} 25. Nd6 {[%clk 0:01:20]}  Rxe5 {[%clk 0:00:09]} 26. Nxc8 {[%clk 0:01:11]}  Qxc8 {[%clk 0:00:09]} 27. Qxc7+ {[%clk 0:01:09]}  Qxc7 {[%clk 0:00:10]} 28. Rxc7+ {[%clk 0:01:10]}  Kf6 {[%clk 0:00:10]} 29. Rxb7 {[%clk 0:01:08]}  Rc5 {[%clk 0:00:10]} 30. b6 {[%clk 0:01:07]}  Nd5 {[%clk 0:00:10]} 31. h3 {[%clk 0:00:50]}  Nc3 {[%clk 0:00:09]} 32. Rc7 {[%clk 0:00:48]}  Rxc7 {[%clk 0:00:04]} 33. bxc7 {[%clk 0:00:48]}  Ne7 {[%clk 0:00:05]} 34. Rb8 {[%clk 0:00:45]}  Ne2+ {[%clk 0:00:05]} 35. Kf1 {[%clk 0:00:43]}  Nxg3+ {[%clk 0:00:06]} 36. fxg3 {[%clk 0:00:44]}  e5 {[%clk 0:00:06]} 37. c8=Q {[%clk 0:00:44]}  Nxc8 {[%clk 0:00:02]} 38. Rxc8 {[%clk 0:00:45]}  Kg6 {[%clk 0:00:03]} 39. Rc6+ {[%clk 0:00:45]}  Kh7 {[%clk 0:00:03]} 40. Re6 {[%clk 0:00:44]}  Kg7 {[%clk 0:00:03]} 41. Rxe5 {[%clk 0:00:45]}  Kh7 {[%clk 0:00:04]} 42. g4 {[%clk 0:00:44]}  Kg7 {[%clk 0:00:04]} 43. Kf2 {[%clk 0:00:45]}  Kh7 {[%clk 0:00:05]} 44. Ke3 {[%clk 0:00:44]}  Kg7 {[%clk 0:00:06]} 45. Ke4 {[%clk 0:00:45]}  Kh7 {[%clk 0:00:07]} 46. Kf5 {[%clk 0:00:46]}  Kg7 {[%clk 0:00:08]} 47. Re7+ {[%clk 0:00:46]}  Kg8 {[%clk 0:00:08]} 48. Kf6 {[%clk 0:00:45]}  Kh8 {[%clk 0:00:08]} 49. Kg6 {[%clk 0:00:46]}  Kg8 {[%clk 0:00:09]} 50. Re8# {[%clk 0:00:46]} 1-0


[Site "https://www.chess.com"]